[Event "Titled Tuesday Blitz March 14 Late 2023"]
[White "Oro, Faustino"]
[Black "Lenderman, Aleksandr"]
[WhiteFideId "20000197"]
[BlackFideId "2021285"]
[WhiteElo "1984"]
[BlackElo "2607"]
[Result "0-1"]
[Round "06"]
[TimeControl "180+2"]
[Date "2023.03.14"]
[WhiteClock "0:00:02"]
[BlackClock "0:00:08"]

1. e4 {[%clk 0:03:00]}  e5 {[%clk 0:02:58]} 2. Nf3 {[%clk 0:03:00]}  Nf6 {[%clk 0:02:58]} 3. Nxe5 {[%clk 0:03:00]}  d6 {[%clk 0:02:58]} 4. Nf3 {[%clk 0:02:59]}  Nxe4 {[%clk 0:02:59]} 5. Nc3 {[%clk 0:03:00]}  Nf6 {[%clk 0:02:57]} 6. g3 {[%clk 0:02:37]}  Be7 {[%clk 0:02:54]} 7. Bg2 {[%clk 0:02:37]}  O-O {[%clk 0:02:54]} 8. O-O {[%clk 0:02:38]}  d5 {[%clk 0:02:55]} 9. d3 {[%clk 0:02:32]}  c6 {[%clk 0:02:53]} 10. Re1 {[%clk 0:02:32]}  Re8 {[%clk 0:02:53]} 11. h3 {[%clk 0:02:26]}  Nbd7 {[%clk 0:02:53]} 12. Ne2 {[%clk 0:02:19]}  Nf8 {[%clk 0:02:48]} 13. c3 {[%clk 0:02:12]}  Ng6 {[%clk 0:02:47]} 14. Nf4 {[%clk 0:02:12]}  Bd6 {[%clk 0:02:44]} 15. Nxg6 {[%clk 0:02:11]}  hxg6 {[%clk 0:02:45]} 16. Bg5 {[%clk 0:02:10]}  Rxe1+ {[%clk 0:02:44]} 17. Qxe1 {[%clk 0:02:10]}  Bf5 {[%clk 0:02:41]} 18. Qd2 {[%clk 0:02:08]}  Qd7 {[%clk 0:02:41]} 19. Kh2 {[%clk 0:02:02]}  Re8 {[%clk 0:02:39]} 20. Re1 {[%clk 0:01:56]}  Rxe1 {[%clk 0:02:37]} 21. Nxe1 {[%clk 0:01:57]}  a6 {[%clk 0:02:33]} 22. Qe3 {[%clk 0:01:56]}  Nh7 {[%clk 0:02:23]} 23. Bf4 {[%clk 0:01:53]}  Bf8 {[%clk 0:02:21]} 24. Qe2 {[%clk 0:01:48]}  g5 {[%clk 0:02:17]} 25. Be3 {[%clk 0:01:47]}  g4 {[%clk 0:02:17]} 26. h4 {[%clk 0:01:44]}  Bd6 {[%clk 0:02:18]} 27. Nc2 {[%clk 0:01:42]}  Nf6 {[%clk 0:02:15]} 28. Nd4 {[%clk 0:01:39]}  Bg6 {[%clk 0:02:14]} 29. Bg5 {[%clk 0:01:37]}  c5 {[%clk 0:02:08]} 30. Bxf6 {[%clk 0:01:32]}  gxf6 {[%clk 0:02:07]} 31. Nb3 {[%clk 0:01:33]}  Qe6 {[%clk 0:02:02]} 32. Qd2 {[%clk 0:01:25]}  Qf5 {[%clk 0:01:56]} 33. d4 {[%clk 0:01:16]}  c4 {[%clk 0:01:54]} 34. Nc5 {[%clk 0:01:15]}  b6 {[%clk 0:01:40]} 35. Nxa6 {[%clk 0:01:13]}  Qd3 {[%clk 0:01:40]} 36. Qe1 {[%clk 0:01:08]}  Qc2 {[%clk 0:01:38]} 37. Bxd5 {[%clk 0:01:03]}  Qxb2 {[%clk 0:01:38]} 38. Bxc4 {[%clk 0:01:00]}  b5 {[%clk 0:01:30]} 39. Bb3 {[%clk 0:00:57]}  Kg7 {[%clk 0:01:24]} 40. Nc5 {[%clk 0:00:55]}  b4 {[%clk 0:01:20]} 41. cxb4 {[%clk 0:00:41]}  Qxd4 {[%clk 0:01:20]} 42. a4 {[%clk 0:00:25]}  f5 {[%clk 0:01:18]} 43. Bd1 {[%clk 0:00:20]}  f4 {[%clk 0:01:14]} 44. Nb3 {[%clk 0:00:19]}  fxg3+ {[%clk 0:00:48]} 45. fxg3 {[%clk 0:00:20]}  Qb2+ {[%clk 0:00:48]} 46. Kg1 {[%clk 0:00:19]}  Qb1 {[%clk 0:00:34]} 47. Qd2 {[%clk 0:00:09]}  Bxb4 {[%clk 0:00:29]} 48. Qd4+ {[%clk 0:00:08]}  Kh7 {[%clk 0:00:29]} 49. Kh2 {[%clk 0:00:07]}  Bf8 {[%clk 0:00:18]} 50. Qxg4 {[%clk 0:00:05]}  Qb2+ {[%clk 0:00:17]} 51. Qe2 {[%clk 0:00:05]}  Qc3 {[%clk 0:00:17]} 52. a5 {[%clk 0:00:05]}  Bd6 {[%clk 0:00:17]} 53. Qf2 {[%clk 0:00:06]}  Qc4 {[%clk 0:00:13]} 54. Qd4 {[%clk 0:00:03]}  Qe6 {[%clk 0:00:09]} 55. Qd2 {[%clk 0:00:03]}  Qf6 {[%clk 0:00:08]} 56. Nd4 {[%clk 0:00:03]}  Qxh4+ {[%clk 0:00:08]} 57. Kg1 {[%clk 0:00:03]}  Qxg3+ {[%clk 0:00:08]} 58. Kf1 {[%clk 0:00:03]}  Bd3+ {[%clk 0:00:07]} 59. Be2 {[%clk 0:00:04]}  Qh3+ {[%clk 0:00:08]} 60. Kg1 {[%clk 0:00:03]}  Bh2+ {[%clk 0:00:08]} 61. Kf2 {[%clk 0:00:02]}  Qg3+ {[%clk 0:00:08]} 0-1


[Site "https://www.chess.com"]

[Event "Titled Tuesday Blitz March 14 Late 2023"]
[White "Priasmoro, Novendra"]
[Black "Chigaev, Maksim"]
[WhiteFideId "7105029"]
[BlackFideId "4108116"]
[WhiteElo "2412"]
[BlackElo "2547"]
[Result "0-1"]
[Round "06"]
[TimeControl "180+2"]
[Date "2023.03.14"]
[WhiteClock "0:00:04"]
[BlackClock "0:00:22"]

1. e4 {[%clk 0:03:00]}  c5 {[%clk 0:02:57]} 2. Nf3 {[%clk 0:03:01]}  Nc6 {[%clk 0:02:56]} 3. Bb5 {[%clk 0:03:01]}  e5 {[%clk 0:02:56]} 4. O-O {[%clk 0:02:59]}  Bd6 {[%clk 0:02:56]} 5. Na3 {[%clk 0:02:56]}  Nge7 {[%clk 0:02:52]} 6. Nc4 {[%clk 0:02:56]}  Bc7 {[%clk 0:02:52]} 7. c3 {[%clk 0:02:53]}  O-O {[%clk 0:02:41]} 8. a4 {[%clk 0:02:40]}  d5 {[%clk 0:02:23]} 9. exd5 {[%clk 0:02:36]}  Qxd5 {[%clk 0:02:24]} 10. d3 {[%clk 0:02:27]}  Qd8 {[%clk 0:01:54]} 11. Re1 {[%clk 0:02:24]}  f6 {[%clk 0:01:45]} 12. Be3 {[%clk 0:02:11]}  b6 {[%clk 0:01:37]} 13. a5 {[%clk 0:02:02]}  Be6 {[%clk 0:01:25]} 14. axb6 {[%clk 0:01:59]}  axb6 {[%clk 0:01:26]} 15. Rxa8 {[%clk 0:01:59]}  Qxa8 {[%clk 0:01:27]} 16. d4 {[%clk 0:01:59]}  cxd4 {[%clk 0:01:12]} 17. cxd4 {[%clk 0:02:00]}  e4 {[%clk 0:01:13]} 18. Nfd2 {[%clk 0:01:36]}  f5 {[%clk 0:01:10]} 19. g3 {[%clk 0:01:25]}  Nd5 {[%clk 0:01:07]} 20. Qa1 {[%clk 0:01:10]}  Ncb4 {[%clk 0:01:02]} 21. Nf1 {[%clk 0:00:48]}  Qb8 {[%clk 0:00:52]} 22. Qa4 {[%clk 0:00:36]}  f4 {[%clk 0:00:52]} 23. Bd2 {[%clk 0:00:32]}  e3 {[%clk 0:00:33]} 24. Bxb4 {[%clk 0:00:04]}  Nxb4 {[%clk 0:00:33]} 25. fxe3 {[%clk 0:00:03]}  fxg3 {[%clk 0:00:28]} 26. Qxb4 {[%clk 0:00:03]}  gxh2+ {[%clk 0:00:27]} 27. Kh1 {[%clk 0:00:04]}  Rxf1+ {[%clk 0:00:21]} 28. Rxf1 {[%clk 0:00:04]}  Bd5+ {[%clk 0:00:22]} 0-1


[Site "https://www.chess.com"]

[Event "Titled Tuesday Blitz March 14 Late 2023"]
[White "Tanenbaum, Zachary"]
[Black "Kramnik, Vladimir"]
[WhiteFideId "2060850"]
[BlackFideId "4101588"]
[WhiteElo "2175"]
[BlackElo "2712"]
[Result "0-1"]
[Round "06"]
[TimeControl "180+2"]
[Date "2023.03.14"]
[WhiteClock "0:00:16"]
[BlackClock "0:01:00"]

1. e4 {[%clk 0:03:00]}  c5 {[%clk 0:02:59]} 2. Nf3 {[%clk 0:03:00]}  e6 {[%clk 0:02:59]} 3. d4 {[%clk 0:03:01]}  cxd4 {[%clk 0:02:58]} 4. Nxd4 {[%clk 0:03:02]}  a6 {[%clk 0:02:58]} 5. Bd3 {[%clk 0:03:01]}  Nf6 {[%clk 0:02:57]} 6. O-O {[%clk 0:03:01]}  Qc7 {[%clk 0:02:57]} 7. Nc3 {[%clk 0:02:59]}  b5 {[%clk 0:02:49]} 8. Be3 {[%clk 0:02:56]}  Bb7 {[%clk 0:02:46]} 9. a3 {[%clk 0:02:56]}  Be7 {[%clk 0:02:41]} 10. f4 {[%clk 0:02:56]}  d6 {[%clk 0:02:40]} 11. Qf3 {[%clk 0:02:56]}  Nbd7 {[%clk 0:02:38]} 12. Rae1 {[%clk 0:02:57]}  h5 {[%clk 0:02:36]} 13. h3 {[%clk 0:02:57]}  h4 {[%clk 0:02:32]} 14. Bf2 {[%clk 0:02:56]}  g6 {[%clk 0:02:23]} 15. Qe3 {[%clk 0:02:53]}  Nh5 {[%clk 0:02:14]} 16. Nf3 {[%clk 0:02:34]}  Ng3 {[%clk 0:02:01]} 17. Bxg3 {[%clk 0:02:34]}  hxg3 {[%clk 0:02:01]} 18. Nd4 {[%clk 0:01:47]}  Qb6 {[%clk 0:01:42]} 19. Nb3 {[%clk 0:01:43]}  Rc8 {[%clk 0:01:31]} 20. Rf3 {[%clk 0:01:29]}  Bf6 {[%clk 0:01:29]} 21. Qxb6 {[%clk 0:01:25]}  Nxb6 {[%clk 0:01:29]} 22. Rb1 {[%clk 0:01:18]}  Nc4 {[%clk 0:01:11]} 23. Bxc4 {[%clk 0:01:12]}  bxc4 {[%clk 0:01:10]} 24. Na5 {[%clk 0:01:10]}  Ba8 {[%clk 0:01:09]} 25. Rd1 {[%clk 0:01:08]}  Rc5 {[%clk 0:01:05]} 26. Rxd6 {[%clk 0:00:34]}  Rxa5 {[%clk 0:01:04]} 27. Rxg3 {[%clk 0:00:32]}  g5 {[%clk 0:01:04]} 28. Rb6 {[%clk 0:00:16]}  gxf4 {[%clk 0:01:01]} 29. Rf3 {[%clk 0:00:16]}  Bd4+ {[%clk 0:01:00]} 0-1


[Site "https://www.chess.com"]

[Event "Titled Tuesday Blitz March 14 Late 2023"]
[White "Atakhan, Abtin"]
[Black "Hansen, Eric"]
[WhiteFideId "22502203"]
[BlackFideId "2606771"]
[WhiteElo "2008"]
[BlackElo "2569"]
[Result "0-1"]
[Round "06"]
[TimeControl "180+2"]
[Date "2023.03.14"]
[WhiteClock "0:00:10"]
[BlackClock "0:00:08"]

1. c4 {[%clk 0:03:00]}  e5 {[%clk 0:02:51]} 2. Nc3 {[%clk 0:03:00]}  Bb4 {[%clk 0:02:51]} 3. Nf3 {[%clk 0:02:58]}  Bxc3 {[%clk 0:02:51]} 4. bxc3 {[%clk 0:02:55]}  d6 {[%clk 0:02:50]} 5. e4 {[%clk 0:02:53]}  f5 {[%clk 0:02:37]} 6. d4 {[%clk 0:02:48]}  fxe4 {[%clk 0:02:28]} 7. Ng5 {[%clk 0:02:48]}  Nc6 {[%clk 0:02:13]} 8. Nxe4 {[%clk 0:02:34]}  Bf5 {[%clk 0:02:11]} 9. Ng3 {[%clk 0:02:29]}  Bg6 {[%clk 0:02:10]} 10. h4 {[%clk 0:02:26]}  Qd7 {[%clk 0:01:59]} 11. h5 {[%clk 0:02:23]}  Bf7 {[%clk 0:02:00]} 12. Be2 {[%clk 0:02:15]}  Nf6 {[%clk 0:01:27]} 13. h6 {[%clk 0:02:04]}  gxh6 {[%clk 0:01:01]} 14. Rxh6 {[%clk 0:02:04]}  Bg6 {[%clk 0:01:00]} 15. Bg5 {[%clk 0:01:53]}  O-O {[%clk 0:01:00]} 16. Qd2 {[%clk 0:01:38]}  Rae8 {[%clk 0:00:57]} 17. Kf1 {[%clk 0:01:27]}  Ng4 {[%clk 0:00:55]} 18. Bxg4 {[%clk 0:01:26]}  Qxg4 {[%clk 0:00:55]} 19. Kg1 {[%clk 0:01:17]}  exd4 {[%clk 0:00:52]} 20. Rh4 {[%clk 0:00:56]}  dxc3 {[%clk 0:00:52]} 21. Qc1 {[%clk 0:00:55]}  Qe6 {[%clk 0:00:46]} 22. Qxc3 {[%clk 0:00:54]}  Qe5 {[%clk 0:00:44]} 23. Qc1 {[%clk 0:00:51]}  Nb4 {[%clk 0:00:41]} 24. f4 {[%clk 0:00:24]}  Qc5+ {[%clk 0:00:21]} 25. Kh2 {[%clk 0:00:24]}  Nd3 {[%clk 0:00:21]} 26. Qc3 {[%clk 0:00:22]}  Nf2 {[%clk 0:00:08]} 27. Bh6 {[%clk 0:00:20]}  Rf7 {[%clk 0:00:03]} 28. Rf1 {[%clk 0:00:21]}  Ne4 {[%clk 0:00:02]} 29. Nxe4 {[%clk 0:00:20]}  Rxe4 {[%clk 0:00:03]} 30. Rg4 {[%clk 0:00:19]}  Qh5+ {[%clk 0:00:03]} 31. Qh3 {[%clk 0:00:19]}  Qxh3+ {[%clk 0:00:03]} 32. gxh3 {[%clk 0:00:20]}  Kh8 {[%clk 0:00:03]} 33. Rg5 {[%clk 0:00:18]}  Re2+ {[%clk 0:00:03]} 34. Kg1 {[%clk 0:00:18]}  Rf5 {[%clk 0:00:03]} 35. Rxf5 {[%clk 0:00:16]}  Bxf5 {[%clk 0:00:03]} 36. Rf3 {[%clk 0:00:15]}  Re6 {[%clk 0:00:03]} 37. Bg5 {[%clk 0:00:15]}  h6 {[%clk 0:00:03]} 38. Bd8 {[%clk 0:00:16]}  c6 {[%clk 0:00:03]} 39. Ra3 {[%clk 0:00:16]}  a6 {[%clk 0:00:03]} 40. Rb3 {[%clk 0:00:17]}  b5 {[%clk 0:00:03]} 41. cxb5 {[%clk 0:00:17]}  axb5 {[%clk 0:00:04]} 42. Bc7 {[%clk 0:00:13]}  Kg8 {[%clk 0:00:04]} 43. Kf2 {[%clk 0:00:13]}  Kf7 {[%clk 0:00:04]} 44. Rb2 {[%clk 0:00:13]}  Ke8 {[%clk 0:00:04]} 45. Rd2 {[%clk 0:00:12]}  Kd7 {[%clk 0:00:04]} 46. Bb6 {[%clk 0:00:13]}  Bxh3 {[%clk 0:00:05]} 47. Bc5 {[%clk 0:00:11]}  Bf5 {[%clk 0:00:05]} 48. Bb4 {[%clk 0:00:11]}  Kc7 {[%clk 0:00:06]} 49. Ba5+ {[%clk 0:00:11]}  Kb7 {[%clk 0:00:06]} 50. Bb4 {[%clk 0:00:12]}  c5 {[%clk 0:00:07]} 51. Bc3 {[%clk 0:00:12]}  Kc6 {[%clk 0:00:07]} 52. Bg7 {[%clk 0:00:12]}  h5 {[%clk 0:00:07]} 53. Kf3 {[%clk 0:00:11]}  h4 {[%clk 0:00:07]} 54. Rh2 {[%clk 0:00:12]}  h3 {[%clk 0:00:08]} 55. Bc3 {[%clk 0:00:11]}  b4 {[%clk 0:00:08]} 56. Bd2 {[%clk 0:00:11]}  Kb5 {[%clk 0:00:08]} 57. Bc1 {[%clk 0:00:11]}  Re1 {[%clk 0:00:08]} 58. Be3 {[%clk 0:00:11]}  c4 {[%clk 0:00:07]} 59. Bf2 {[%clk 0:00:12]}  Rd1 {[%clk 0:00:07]} 60. Ke2 {[%clk 0:00:12]}  Bg4+ {[%clk 0:00:07]} 61. Ke3 {[%clk 0:00:12]}  d5 {[%clk 0:00:08]} 62. Bg3 {[%clk 0:00:10]}  Rd3+ {[%clk 0:00:07]} 63. Kf2 {[%clk 0:00:10]}  Rf3+ {[%clk 0:00:08]} 0-1


[Site "https://www.chess.com"]

[Event "Titled Tuesday Blitz March 14 Late 2023"]
[White "Adewumi, Tanitoluwa"]
[Black "Ruiz Castillo, Joshua Daniel"]
[WhiteFideId "30966396"]
[BlackFideId "4400704"]
[WhiteElo "2814"]
[BlackElo "2491"]
[Result "0-1"]
[Round "06"]
[TimeControl "180+2"]
[Date "2023.03.14"]
[WhiteClock "0:00:14"]
[BlackClock "0:00:47"]

1. e4 {[%clk 0:03:00]}  e6 {[%clk 0:02:50]} 2. d4 {[%clk 0:03:00]}  d5 {[%clk 0:02:51]} 3. exd5 {[%clk 0:03:01]}  exd5 {[%clk 0:02:51]} 4. Nf3 {[%clk 0:03:02]}  Nc6 {[%clk 0:02:50]} 5. Nc3 {[%clk 0:03:01]}  Bb4 {[%clk 0:02:46]} 6. Bd3 {[%clk 0:02:58]}  Nge7 {[%clk 0:02:46]} 7. a3 {[%clk 0:02:57]}  Bd6 {[%clk 0:02:44]} 8. Nb5 {[%clk 0:02:53]}  Bf5 {[%clk 0:02:44]} 9. Nxd6+ {[%clk 0:02:54]}  Qxd6 {[%clk 0:02:45]} 10. O-O {[%clk 0:02:53]}  O-O {[%clk 0:02:44]} 11. Re1 {[%clk 0:02:52]}  Rfe8 {[%clk 0:02:43]} 12. Bg5 {[%clk 0:02:52]}  Bxd3 {[%clk 0:02:38]} 13. Qxd3 {[%clk 0:02:51]}  Ng6 {[%clk 0:02:38]} 14. Qb5 {[%clk 0:02:41]}  b6 {[%clk 0:02:30]} 15. c4 {[%clk 0:02:18]}  Rxe1+ {[%clk 0:02:01]} 16. Rxe1 {[%clk 0:02:16]}  dxc4 {[%clk 0:02:01]} 17. Qxc4 {[%clk 0:01:47]}  h6 {[%clk 0:02:01]} 18. Be3 {[%clk 0:01:44]}  Nce7 {[%clk 0:02:00]} 19. h4 {[%clk 0:01:09]}  Nd5 {[%clk 0:01:49]} 20. h5 {[%clk 0:01:01]}  Ngf4 {[%clk 0:01:49]} 21. Bxf4 {[%clk 0:01:01]}  Nxf4 {[%clk 0:01:50]} 22. Ne5 {[%clk 0:01:01]}  Rf8 {[%clk 0:01:50]} 23. Nxf7 {[%clk 0:00:49]}  Qd5 {[%clk 0:01:43]} 24. Qxd5 {[%clk 0:00:47]}  Nxd5 {[%clk 0:01:44]} 25. Ne5 {[%clk 0:00:46]}  Rf5 {[%clk 0:01:40]} 26. g4 {[%clk 0:00:33]}  Rf4 {[%clk 0:01:39]} 27. Rd1 {[%clk 0:00:21]}  Re4 {[%clk 0:01:18]} 28. Kf1 {[%clk 0:00:17]}  Nf4 {[%clk 0:01:16]} 29. f3 {[%clk 0:00:07]}  Re3 {[%clk 0:01:16]} 30. Rd2 {[%clk 0:00:06]}  c5 {[%clk 0:01:13]} 31. Kf2 {[%clk 0:00:02]}  cxd4 {[%clk 0:01:11]} 32. Rxd4 {[%clk 0:00:03]}  Rxe5 {[%clk 0:01:10]} 33. Rxf4 {[%clk 0:00:03]}  Rc5 {[%clk 0:01:10]} 34. Re4 {[%clk 0:00:03]}  Rc2+ {[%clk 0:01:09]} 35. Re2 {[%clk 0:00:04]}  Rc7 {[%clk 0:01:07]} 36. Rd2 {[%clk 0:00:04]}  Kf7 {[%clk 0:01:05]} 37. Ke3 {[%clk 0:00:05]}  Kf6 {[%clk 0:01:05]} 38. Ke4 {[%clk 0:00:05]}  Kg5 {[%clk 0:01:04]} 39. Ke3 {[%clk 0:00:04]}  Re7+ {[%clk 0:01:01]} 40. Kf2 {[%clk 0:00:04]}  Kh4 {[%clk 0:01:00]} 41. Kg2 {[%clk 0:00:03]}  Re3 {[%clk 0:00:59]} 42. Kf2 {[%clk 0:00:03]}  Rb3 {[%clk 0:00:58]} 43. Rc2 {[%clk 0:00:04]}  a5 {[%clk 0:00:56]} 44. Rd2 {[%clk 0:00:04]}  b5 {[%clk 0:00:55]} 45. Kg2 {[%clk 0:00:04]}  a4 {[%clk 0:00:53]} 46. Re2 {[%clk 0:00:04]}  Rd3 {[%clk 0:00:52]} 47. Kf2 {[%clk 0:00:04]}  Kh3 {[%clk 0:00:50]} 48. Re3 {[%clk 0:00:02]}  Rd2+ {[%clk 0:00:49]} 49. Re2 {[%clk 0:00:03]}  Rd3 {[%clk 0:00:49]} 50. Re1 {[%clk 0:00:03]}  Kh4 {[%clk 0:00:47]} 51. Rh1+ {[%clk 0:00:03]}  Kg5 {[%clk 0:00:47]} 52. Re1 {[%clk 0:00:03]}  Kh4 {[%clk 0:00:47]} 53. Re2 {[%clk 0:00:03]}  Rb3 {[%clk 0:00:47]} 54. Rd2 {[%clk 0:00:03]}  Kh3 {[%clk 0:00:47]} 55. Re2 {[%clk 0:00:02]}  Kh2 {[%clk 0:00:46]} 56. Re1 {[%clk 0:00:01]}  Rxb2+ {[%clk 0:00:45]} 57. Ke3 {[%clk 0:00:02]}  Rb3+ {[%clk 0:00:44]} 58. Kf4 {[%clk 0:00:03]}  Kg2 {[%clk 0:00:44]} 59. Re2+ {[%clk 0:00:02]}  Kh3 {[%clk 0:00:44]} 60. Re5 {[%clk 0:00:02]}  Kg2 {[%clk 0:00:42]} 61. Re2+ {[%clk 0:00:02]}  Kf1 {[%clk 0:00:42]} 62. Re5 {[%clk 0:00:03]}  Kf2 {[%clk 0:00:41]} 63. g5 {[%clk 0:00:02]}  Rxf3+ {[%clk 0:00:41]} 64. Kg4 {[%clk 0:00:02]}  Rg3+ {[%clk 0:00:42]} 65. Kf4 {[%clk 0:00:03]}  Rxg5 {[%clk 0:00:43]} 66. Re3 {[%clk 0:00:03]}  Rf5+ {[%clk 0:00:42]} 67. Kxf5 {[%clk 0:00:03]}  Kxe3 {[%clk 0:00:42]} 68. Kg6 {[%clk 0:00:04]}  b4 {[%clk 0:00:43]} 69. axb4 {[%clk 0:00:04]}  a3 {[%clk 0:00:43]} 70. b5 {[%clk 0:00:05]}  a2 {[%clk 0:00:44]} 71. b6 {[%clk 0:00:06]}  a1=Q {[%clk 0:00:45]} 72. b7 {[%clk 0:00:07]}  Qf6+ {[%clk 0:00:45]} 73. Kh7 {[%clk 0:00:07]}  Qb6 {[%clk 0:00:46]} 74. Kh8 {[%clk 0:00:07]}  Qxb7 {[%clk 0:00:46]} 75. Kh7 {[%clk 0:00:08]}  Qf3 {[%clk 0:00:46]} 76. Kg6 {[%clk 0:00:08]}  Qg4+ {[%clk 0:00:46]} 77. Kh7 {[%clk 0:00:08]}  Qxh5 {[%clk 0:00:46]} 78. Kh8 {[%clk 0:00:09]}  Qf7 {[%clk 0:00:46]} 79. Kh7 {[%clk 0:00:10]}  Qf6 {[%clk 0:00:44]} 80. Kh8 {[%clk 0:00:11]}  g5+ {[%clk 0:00:45]} 81. Kh7 {[%clk 0:00:11]}  g4 {[%clk 0:00:45]} 82. Kg8 {[%clk 0:00:12]}  Qe7 {[%clk 0:00:45]} 83. Kh8 {[%clk 0:00:12]}  Kf4 {[%clk 0:00:46]} 84. Kg8 {[%clk 0:00:13]}  Kg5 {[%clk 0:00:46]} 85. Kh8 {[%clk 0:00:14]}  Kg6 {[%clk 0:00:47]} 86. Kg8 {[%clk 0:00:14]}  Qg7# {[%clk 0:00:47]} 0-1


[Site "https://www.chess.com"]

[Event "Titled Tuesday Blitz March 14 Late 2023"]
[White "Diaz Perez, Michel Alejandro"]
[Black "Ashraf, Artin"]
[WhiteFideId "3517179"]
[BlackFideId "22514805"]
[WhiteElo "2333"]
[BlackElo "2188"]
[Result "0-1"]
[Round "06"]
[TimeControl "180+2"]
[Date "2023.03.14"]
[WhiteClock "0:00:28"]
[BlackClock "0:00:19"]

1. Nf3 {[%clk 0:03:00]}  d5 {[%clk 0:02:58]} 2. c4 {[%clk 0:03:01]}  e6 {[%clk 0:02:57]} 3. e3 {[%clk 0:03:01]}  Nf6 {[%clk 0:02:56]} 4. Qc2 {[%clk 0:03:01]}  c5 {[%clk 0:02:54]} 5. b3 {[%clk 0:02:58]}  d4 {[%clk 0:02:51]} 6. exd4 {[%clk 0:02:58]}  cxd4 {[%clk 0:02:52]} 7. Bd3 {[%clk 0:02:58]}  Nc6 {[%clk 0:02:52]} 8. a3 {[%clk 0:02:56]}  a5 {[%clk 0:02:48]} 9. O-O {[%clk 0:02:56]}  Bd6 {[%clk 0:02:48]} 10. Bb2 {[%clk 0:02:50]}  e5 {[%clk 0:02:45]} 11. Ng5 {[%clk 0:02:46]}  h6 {[%clk 0:02:41]} 12. Ne4 {[%clk 0:02:45]}  O-O {[%clk 0:02:39]} 13. Nxf6+ {[%clk 0:02:44]}  Qxf6 {[%clk 0:02:38]} 14. Be4 {[%clk 0:02:44]}  Be6 {[%clk 0:02:28]} 15. d3 {[%clk 0:02:44]}  Qe7 {[%clk 0:02:27]} 16. Nd2 {[%clk 0:02:44]}  f5 {[%clk 0:02:27]} 17. Bd5 {[%clk 0:02:44]}  Rac8 {[%clk 0:02:24]} 18. Bxe6+ {[%clk 0:02:39]}  Qxe6 {[%clk 0:02:25]} 19. Rfe1 {[%clk 0:02:37]}  Rcd8 {[%clk 0:02:21]} 20. c5 {[%clk 0:02:29]}  Bc7 {[%clk 0:02:18]} 21. Nc4 {[%clk 0:02:29]}  Qg6 {[%clk 0:02:02]} 22. b4 {[%clk 0:02:24]}  e4 {[%clk 0:01:05]} 23. Rad1 {[%clk 0:02:19]}  Qh5 {[%clk 0:01:01]} 24. h3 {[%clk 0:02:16]}  axb4 {[%clk 0:01:00]} 25. dxe4 {[%clk 0:02:10]}  f4 {[%clk 0:00:55]} 26. Qb3 {[%clk 0:02:00]}  f3 {[%clk 0:00:51]} 27. Ne5+ {[%clk 0:01:53]}  Kh8 {[%clk 0:00:48]} 28. Nxf3 {[%clk 0:01:53]}  bxa3 {[%clk 0:00:28]} 29. Bxa3 {[%clk 0:01:53]}  Ba5 {[%clk 0:00:26]} 30. Rf1 {[%clk 0:01:45]}  Bc3 {[%clk 0:00:20]} 31. Qxb7 {[%clk 0:01:42]}  Qg6 {[%clk 0:00:20]} 32. Qb1 {[%clk 0:01:31]}  Rxf3 {[%clk 0:00:19]} 33. e5 {[%clk 0:01:24]}  Qxb1 {[%clk 0:00:20]} 34. Rxb1 {[%clk 0:01:24]}  Rff8 {[%clk 0:00:19]} 35. f4 {[%clk 0:01:24]}  Rb8 {[%clk 0:00:20]} 36. g3 {[%clk 0:01:16]}  d3 {[%clk 0:00:20]} 37. Rfd1 {[%clk 0:01:15]}  Rxb1 {[%clk 0:00:14]} 38. Rxb1 {[%clk 0:01:16]}  Ra8 {[%clk 0:00:10]} 39. Bc1 {[%clk 0:01:02]}  Rb8 {[%clk 0:00:10]} 40. Rxb8+ {[%clk 0:01:00]}  Nxb8 {[%clk 0:00:11]} 41. Kf1 {[%clk 0:00:54]}  d2 {[%clk 0:00:11]} 42. Bxd2 {[%clk 0:00:55]}  Bxd2 {[%clk 0:00:12]} 43. Ke2 {[%clk 0:00:55]}  Bb4 {[%clk 0:00:12]} 44. Kd3 {[%clk 0:00:56]}  Bxc5 {[%clk 0:00:12]} 45. Kc4 {[%clk 0:00:56]}  Bf8 {[%clk 0:00:12]} 46. Kd5 {[%clk 0:00:56]}  Na6 {[%clk 0:00:11]} 47. g4 {[%clk 0:00:55]}  Kg8 {[%clk 0:00:11]} 48. f5 {[%clk 0:00:53]}  Kf7 {[%clk 0:00:12]} 49. h4 {[%clk 0:00:52]}  Nb4+ {[%clk 0:00:11]} 50. Ke4 {[%clk 0:00:49]}  Nc6 {[%clk 0:00:11]} 51. g5 {[%clk 0:00:49]}  h5 {[%clk 0:00:12]} 52. g6+ {[%clk 0:00:45]}  Ke7 {[%clk 0:00:08]} 53. Kf4 {[%clk 0:00:44]}  Nd4 {[%clk 0:00:05]} 54. Kg5 {[%clk 0:00:43]}  Nf3+ {[%clk 0:00:04]} 55. Kxh5 {[%clk 0:00:40]}  Nxe5 {[%clk 0:00:04]} 56. Kg5 {[%clk 0:00:41]}  Nd7 {[%clk 0:00:05]} 57. h5 {[%clk 0:00:25]}  Nf6 {[%clk 0:00:06]} 58. Kh4 {[%clk 0:00:22]}  Kd6 {[%clk 0:00:06]} 59. Kg5 {[%clk 0:00:23]}  Ke5 {[%clk 0:00:07]} 60. h6 {[%clk 0:00:21]}  gxh6+ {[%clk 0:00:08]} 61. Kh4 {[%clk 0:00:22]}  Kxf5 {[%clk 0:00:08]} 62. g7 {[%clk 0:00:22]}  Bxg7 {[%clk 0:00:09]} 63. Kh3 {[%clk 0:00:23]}  h5 {[%clk 0:00:09]} 64. Kh4 {[%clk 0:00:23]}  Kg6 {[%clk 0:00:10]} 65. Kh3 {[%clk 0:00:23]}  Kg5 {[%clk 0:00:11]} 66. Kg3 {[%clk 0:00:23]}  h4+ {[%clk 0:00:12]} 67. Kh3 {[%clk 0:00:24]}  Kh5 {[%clk 0:00:13]} 68. Kg2 {[%clk 0:00:24]}  Kg4 {[%clk 0:00:14]} 69. Kh2 {[%clk 0:00:24]}  h3 {[%clk 0:00:15]} 70. Kh1 {[%clk 0:00:24]}  Kg3 {[%clk 0:00:15]} 71. Kg1 {[%clk 0:00:25]}  Ng4 {[%clk 0:00:16]} 72. Kh1 {[%clk 0:00:25]}  Nf2+ {[%clk 0:00:16]} 73. Kg1 {[%clk 0:00:26]}  h2+ {[%clk 0:00:17]} 74. Kf1 {[%clk 0:00:27]}  h1=Q+ {[%clk 0:00:18]} 75. Ke2 {[%clk 0:00:27]}  Qd1+ {[%clk 0:00:19]} 76. Ke3 {[%clk 0:00:28]}  Qd3# {[%clk 0:00:19]} 0-1


[Site "https://www.chess.com"]